bitfinex-derivatives/quotes_SOLF0:USTF0_20251020
["timestamp","ask_amount","ask_price","bid_price","bid_amount"]
[1760965687628,2.15352196,192.74,192.71,4.6694]
[1760965688728,2.15352196,192.72,192.71,4.6694]
[1760965688926,2.15352196,192.72,192.69,4.6698]
[1760965692719,20.16664828,192.83,192.66,4.80616085]
[1760965693028,2.15352196,192.77,192.68,4.80616085]
[1760965693220,2.15352196,192.77,192.69,4.80616085]
[1760965693426,2.15352196,192.79,192.7,2.15352196]
[1760965694132,2.15352196,192.79,192.74,4.6686]
[1760965695034,2.15352196,192.79,192.75,4.6684]
[1760965696323,2.15352196,192.81,192.76,4.6681]
[1760965696537,2.15352196,192.81,192.72,6.95968281]
[1760965696538,6.59961869,192.82,192.74,2.15352196]
[1760965698026,11.26651869,192.82,192.75,4.6684]
[1760965698938,2.15352196,192.8,192.73,4.6689]
[1760965699233,2.15352196,192.78,192.73,4.6689]
[1760965700132,4.6674,192.8,192.71,4.6693]
[1760965700133,2.15352196,192.76,192.71,4.6693]
[1760965700327,4.44609673,192.8,192.65,9.73259891]
[1760965700328,2.15352196,192.72,192.67,4.80616085]
[1760965700527,2.15352196,192.72,192.65,4.80616085]
[1760965700728,2.15352196,192.7,192.65,4.80616085]
[1760965701321,2.15352196,192.68,192.65,4.80616085]
[1760965701732,4.6693,192.72,192.65,4.80616085]
[1760965701924,2.15352196,192.68,192.65,4.80616085]
[1760965702128,2.15352196,192.68,192.65,9.47696085]
[1760965704136,2.15352196,192.68,192.65,4.80616085]
[1760965704332,2.15352196,192.66,192.65,4.80616085]
[1760965705036,2.15352196,192.66,192.65,9.47706085]
[1760965706241,2.15352196,192.66,192.65,4.6709]
[1760965706542,2.15352196,192.68,192.65,4.6709]
[1760965707636,2.15352196,192.68,192.64,4.80616085]
[1760965708032,2.15352196,192.68,192.63,9.47756085]
[1760965709444,2.15352196,192.66,192.63,9.47756085]
[1760965709839,2.15352196,192.66,192.63,4.6714]
[1760965711242,2.15352196,192.68,192.64,4.80616085]
[1760965711441,2.15352196,192.71,192.64,4.80616085]
[1760965712546,2.15352196,192.71,192.65,4.6708]
[1760965712737,2.15352196,192.69,192.62,4.80616085]
[1760965714346,20.41442415,192.77,192.62,4.80616085]
[1760965714347,2.15352196,192.67,192.62,4.80616085]
[1760965714553,2.15352196,192.67,192.61,9.47786085]
[1760965715051,2.15352196,192.69,192.62,4.80616085]
[1760965715348,2.15352196,192.69,192.62,4.6715]
[1760965715542,2.15352196,192.69,192.63,4.80616085]
[1760965715944,2.15352196,192.69,192.64,4.671]
[1760965716347,2.15352196,192.71,192.63,4.80616085]
[1760965716545,2.15352196,192.71,192.64,4.80616085]
[1760965717651,2.15352196,192.71,192.66,4.6706]
[1760965718257,2.15352196,192.69,192.63,4.80616085]
[1760965718644,4.6693,192.72,192.65,4.6708]
[1760965718851,2.15352196,192.7,192.65,4.6708]
[1760965722865,4.6693,192.72,192.65,4.6708]
[1760965725864,3.36652068,192.73,192.66,4.6705]
[1760965727069,8.03562068,192.73,192.66,4.6705]
[1760965729066,4.6691,192.73,192.66,4.6705]
[1760965731268,3.36652068,192.73,192.64,9.47716085]
[1760965731471,3.36652068,192.73,192.64,4.80616085]
[1760965732175,3.36652068,192.75,192.65,4.6708]
[1760965732875,4.6693,192.72,192.66,4.6706]
[1760965735976,3.36652068,192.72,192.62,4.80616085]
[1760965736670,4.6696,192.71,192.64,9.47726085]
[1760965737577,4.6696,192.71,192.65,4.6708]
[1760965737761,3.36652068,192.72,192.64,4.80616085]
[1760965738475,3.36652068,192.72,192.63,4.80616085]
[1760965738873,4.6696,192.71,192.64,4.671]
[1760965739561,4.6696,192.71,192.65,4.6708]
[1760965741679,4.6691,192.73,192.65,4.80616085]
[1760965742072,9.09469237,192.73,192.65,4.80616085]
[1760965742275,4.6691,192.73,192.66,4.80616085]
[1760965742975,4.6691,192.73,192.67,4.6703]
[1760965743374,4.6693,192.72,192.67,4.6703]
[1760965743582,9.09726776,192.72,192.67,4.6703]
[1760965743782,4.6693,192.72,192.66,4.80616085]
[1760965744469,9.10059752,192.72,192.66,4.80616085]
[1760965744664,4.6693,192.72,192.66,9.47676085]
[1760965744870,4.6693,192.72,192.67,4.80616085]
[1760965745877,4.6693,192.72,192.67,4.83199924]
[1760965746976,4.43437875,192.74,192.68,4.83199924]
[1760965747173,4.43437875,192.74,192.65,6.41885357]
[1760965747174,4.43437875,192.76,192.69,4.83199924]
[1760965747374,3.36652068,192.78,192.69,4.83199924]
[1760965747375,4.43437875,192.75,192.69,4.83199924]
[1760965747574,9.10247875,192.77,192.71,9.50129924]
[1760965747773,4.43437875,192.76,192.72,4.83199924]
[1760965747976,4.43437875,192.8,192.72,4.83199924]
[1760965748275,4.43437875,192.79,192.73,4.83199924]
[1760965748580,4.43437875,192.8,192.73,4.83199924]
[1760965748776,4.43437875,192.79,192.73,4.83199924]
[1760965749079,4.6677,192.79,192.73,4.83199924]
[1760965749270,4.6677,192.79,192.72,9.50109924]
[1760965750780,4.43437875,192.8,192.72,4.83199924]
[1760965750978,4.43437875,192.82,192.73,4.83199924]
[1760965751182,3.36652068,192.81,192.72,4.83199924]
[1760965751477,4.6675,192.8,192.72,4.6691]
[1760965751674,9.10187875,192.8,192.72,4.6691]
[1760965751874,4.43437875,192.79,192.72,4.6691]
[1760965752784,4.6675,192.8,192.72,4.6691]
[1760965753279,9.10127875,192.82,192.72,4.83199924]
[1760965753473,9.10127875,192.82,192.73,4.83199924]
[1760965753677,4.6669,192.82,192.72,4.83199924]
[1760965754076,4.6669,192.82,192.73,4.83199924]
[1760965755172,4.6669,192.82,192.75,4.6684]
[1760965755768,8.03342068,192.82,192.75,4.6684]
[1760965756780,12.42975871,192.82,192.75,4.6684]
[1760965757173,8.03342068,192.82,192.75,4.6684]
[1760965757575,4.6672,192.81,192.73,4.6689]
[1760965758081,4.6672,192.81,192.73,4.83199924]
[1760965759185,4.6672,192.81,192.74,4.6686]
[1760965760587,3.36652068,192.82,192.75,4.6684]
[1760965761386,3.36652068,192.82,192.76,4.6681]
[1760965761588,8.03272068,192.85,192.74,4.83199924]
[1760965761887,8.03272068,192.85,192.75,4.83199924]
[1760965762285,4.6665,192.84,192.76,4.6682]
[1760965762682,4.6667,192.83,192.76,4.6682]
[1760965762884,3.36652068,192.82,192.74,9.50059924]
[1760965763078,3.36652068,192.82,192.74,4.6686]
[1760965763983,4.6672,192.81,192.74,4.6686]
[1760965765293,3.36652068,192.79,192.72,4.83199924]
[1760965765591,3.36652068,192.79,192.71,9.50119924]
[1760965765985,3.36652068,192.79,192.72,4.6691]
[1760965768286,3.36652068,192.79,192.7,9.50159924]
[1760965768481,3.36652068,192.76,192.69,4.83199924]
[1760965768993,3.36652068,192.76,192.69,9.50179924]
[1760965769592,3.36652068,192.77,192.7,4.6696]
[1760965770189,8.03462068,192.77,192.68,9.50209924]
[1760965770787,4.6684,192.76,192.68,9.50209924]
[1760965772285,4.6686,192.75,192.68,9.50209924]
[1760965773389,3.36652068,192.74,192.68,9.50209924]
[1760965773703,8.03542068,192.74,192.66,9.50259924]
[1760965774991,4.6692,192.73,192.66,9.50259924]
[1760965775190,3.36652068,192.74,192.64,4.83199924]
[1760965775396,3.36652068,192.71,192.63,4.83199924]
[1760965775590,3.36652068,192.71,192.62,4.83199924]
[1760965775993,4.6701,192.69,192.62,4.83199924]
[1760965776397,3.36652068,192.68,192.62,4.83199924]
[1760965776602,3.36652068,192.68,192.61,4.83199924]
[1760965776908,3.36652068,192.68,192.61,9.50369924]
[1760965778100,3.36652068,192.68,192.61,4.6717]
[1760965778992,3.36652068,192.68,192.6,4.83199924]
[1760965779202,3.36652068,192.65,192.58,4.83199924]
[1760965780104,8.03762068,192.65,192.57,9.50459924]
[1760965781101,8.03762068,192.65,192.57,4.6726]
[1760965781897,3.36652068,192.65,192.56,4.83199924]
[1760965782100,3.36652068,192.67,192.57,4.83199924]
[1760965782309,3.36652068,192.64,192.56,4.83199924]
[1760965783007,3.36652068,192.64,192.57,4.83199924]
[1760965783807,3.36652068,192.64,192.56,4.83199924]
[1760965784007,3.36652068,192.64,192.58,4.6725]
[1760965784204,3.36652068,192.67,192.56,4.83199924]
[1760965784511,3.36652068,192.67,192.57,4.83199924]
[1760965784712,2.15578231,192.65,192.57,4.83199924]
[1760965785612,2.15578231,192.63,192.59,4.6722]
[1760965786513,2.15578231,192.65,192.59,4.6722]
[1760965787117,2.15578231,192.65,192.6,4.672]
[1760965788809,6.82638231,192.67,192.61,4.6717]
[1760965789015,4.6706,192.67,192.61,4.6717]
[1760965789319,4.6701,192.69,192.6,2.15578231]
[1760965790614,6.82608231,192.68,192.61,4.6718]
[1760965791310,4.39594732,192.75,192.59,4.6723]
[1760965791311,2.15578231,192.64,192.59,4.6723]
[1760965792020,2.15578231,192.66,192.59,4.6723]
[1760965792221,6.82658231,192.66,192.59,4.6723]
[1760965794521,4.671,192.65,192.57,4.6727]
[1760965794721,2.15578231,192.64,192.57,4.6727]
[1760965796022,6.82708231,192.64,192.57,4.6727]
[1760965796925,4.6715,192.63,192.57,4.6727]
[1760965797228,2.15578231,192.64,192.55,4.6733]
[1760965797926,4.6718,192.62,192.56,4.673]
[1760965799024,6.82758231,192.62,192.54,6.82928231]
[1760965799223,4.6721,192.61,192.54,6.82928231]
[1760965799830,2.15578231,192.62,192.55,4.6732]
[1760965801431,2.15578231,192.62,192.56,4.673]
[1760965801636,4.6715,192.63,192.56,4.673]
[1760965802025,4.671,192.65,192.56,2.15578231]
[1760965802225,4.671,192.65,192.58,2.15578231]
[1760965802925,4.671,192.65,192.58,6.82828231]
[1760965803635,6.82708231,192.64,192.56,4.673]
[1760965805433,6.82708231,192.64,192.57,4.6727]
[1760965805728,4.6713,192.64,192.57,6.82848231]
[1760965806132,6.82658231,192.66,192.58,4.6725]
[1760965808844,6.82658231,192.66,192.59,2.15578231]
[1760965809448,6.82658231,192.66,192.58,6.82828231]
[1760965809736,6.82608231,192.68,192.6,2.15578231]
[1760965809941,2.15578231,192.7,192.62,2.15578231]
[1760965810242,2.15578231,192.72,192.64,6.82678231]
[1760965810838,2.15578231,192.74,192.64,6.82678231]
[1760965811436,2.15578231,192.72,192.64,2.15578231]
[1760965811634,2.15578231,192.72,192.62,4.6716]
[1760965811635,2.15578231,192.72,192.62,6.82738231]
[1760965812234,4.6701,192.69,192.62,6.82738231]
[1760965812434,2.15578231,192.7,192.62,2.15578231]
[1760965814044,4.6703,192.68,192.62,2.15578231]
[1760965815633,4.6706,192.67,192.62,2.15578231]
[1760965815842,4.6706,192.67,192.6,9.50399924]
[1760965815843,2.15578231,192.68,192.6,2.15578231]
[1760965816042,2.15578231,192.66,192.58,6.98778155]
[1760965816640,4.40669057,192.7,192.58,4.83199924]
[1760965816844,2.15578231,192.6,192.57,4.83199924]
[1760965819048,2.15578231,192.6,192.58,4.83199924]
[1760965819748,2.15578231,192.6,192.57,4.83199924]
[1760965820052,2.15578231,192.58,192.53,4.83199924]
[1760965820238,2.15578231,192.56,192.52,4.83199924]
[1760965820535,2.15578231,192.54,192.52,4.83199924]
[1760965821347,2.15578231,192.56,192.52,4.83199924]
[1760965821744,2.15578231,192.56,192.44,0.90328609]
[1760965821745,2.15578231,192.62,192.54,6.98778155]
[1760965821946,2.15578231,192.62,192.54,2.15578231]
[1760965822149,4.6725,192.59,192.54,4.83199924]
[1760965822554,4.4283912,192.64,192.56,2.15578231]
[1760965822555,4.4283912,192.63,192.56,2.15578231]
[1760965822849,4.6715,192.63,192.56,6.98778155]
[1760965823052,2.15578231,192.64,192.56,6.98778155]
[1760965823643,4.6718,192.62,192.56,6.98778155]
[1760965827551,4.6721,192.61,192.56,6.98778155]
[1760965829246,4.6715,192.63,192.56,6.98778155]
[1760965830348,4.6718,192.62,192.56,6.98778155]
[1760965833953,4.6718,192.62,192.56,2.15578231]
[1760965837561,4.672,192.61,192.56,2.15578231]
[1760965838056,4.672,192.61,192.56,6.98778155]
[1760965840857,4.6722,192.6,192.55,4.83199924]
[1760965841059,2.15578231,192.6,192.54,4.83199924]
[1760965841659,2.15578231,192.58,192.54,4.83199924]
[1760965841864,2.15578231,192.58,192.53,4.83199924]
[1760965843462,4.6728,192.58,192.53,4.83199924]
[1760965848376,4.6728,192.58,192.52,4.83199924]
[1760965848772,4.673,192.57,192.52,4.83199924]
[1760965849467,4.6732,192.56,192.52,4.83199924]
[1760965850777,4.6732,192.56,192.51,4.83199924]
[1760965854678,15.72506972,192.59,192.51,4.83199924]
[1760965854975,3.37035086,192.6,192.5,4.83199924]
[1760965856077,4.6734,192.55,192.5,4.83199924]
[1760965856278,4.6734,192.55,192.51,4.83199924]
[1760965856675,4.674,192.53,192.49,4.83199924]
[1760965858276,4.6735,192.55,192.49,4.83199924]
[1760965859079,4.6735,192.55,192.5,4.83199924]
[1760965862082,4.6737,192.54,192.5,4.83199924]
[1760965862480,4.6732,192.56,192.51,4.83199924]
[1760965862875,15.95574156,192.59,192.52,4.83199924]
[1760965863075,4.6727,192.58,192.53,4.83199924]
[1760965863679,4.42388736,192.64,192.54,4.83199924]
[1760965863877,4.42388736,192.66,192.55,8.2023501]
[1760965864079,4.42388736,192.66,192.56,4.83199924]
[1760965864282,0.9026769,192.92,192.58,4.83199924]
[1760965864283,4.42388736,192.68,192.58,4.83199924]
[1760965864481,15.28659621,192.68,192.59,4.83199924]
[1760965864682,3.37035086,192.72,192.6,4.83199924]
[1760965864883,4.42161815,192.71,192.6,4.83199924]
[1760965865084,4.42161815,192.7,192.6,4.83199924]
[1760965865279,4.42161815,192.71,192.6,4.83199924]
[1760965865483,4.42161815,192.7,192.6,4.83199924]
[1760965865680,4.42161815,192.69,192.59,4.83199924]
[1760965866187,4.6706,192.67,192.59,9.50419924]
[1760965866986,4.6708,192.66,192.59,9.50419924]
[1760965867290,15.71542719,192.7,192.59,9.50419924]
[1760965867291,4.42013846,192.69,192.59,9.50419924]
[1760965867982,4.42013846,192.69,192.56,6.41885357]
[1760965867983,4.42013846,192.69,192.6,4.83199924]
[1760965868186,43.14,192.74,192.61,8.2023501]
[1760965868380,4.41622212,192.73,192.64,3.37035086]
[1760965868582,4.41622212,192.76,192.64,8.2023501]
[1760965869380,4.6696,192.71,192.64,8.2023501]
[1760965869579,4.6696,192.71,192.64,3.37035086]
[1760965869986,4.6696,192.71,192.62,4.83199924]
[1760965870488,3.37035086,192.74,192.61,3.37035086]
[1760965870692,3.37035086,192.74,192.6,4.83199924]
[1760965870888,3.37035086,192.74,192.61,8.2023501]
[1760965871085,4.41622212,192.76,192.62,4.83199924]
[1760965871287,4.41622212,192.76,192.61,8.2023501]
[1760965871692,47.53622212,192.76,192.61,8.2023501]
[1760965871894,3.37035086,192.74,192.61,8.2023501]
[1760965872089,4.6697,192.7,192.61,12.8740501]
[1760965872293,3.37035086,192.74,192.62,4.83199924]
[1760965872685,4.6693,192.72,192.64,3.37035086]
[1760965873885,18.7773578,192.77,192.64,3.37035086]
[1760965873886,4.6688,192.74,192.64,8.2023501]
[1760965874592,4.6688,192.74,192.64,9.50299924]
[1760965874892,3.37035086,192.74,192.62,4.83199924]
[1760965875997,4.6694,192.72,192.63,4.6714]
[1760965880093,4.6697,192.71,192.63,4.6714]
[1760965881891,4.6699,192.7,192.63,4.6714]
[1760965885990,4.6699,192.7,192.64,4.6711]
[1760965888210,4.6699,192.7,192.65,4.6709]
[1760965888699,4.6715,192.63,192.6,4.83199924]
[1760965888893,3.37035086,192.62,192.45,6.41885357]
[1760965889093,3.37035086,192.55,192.42,9.78920443]
[1760965889307,3.37035086,192.55,192.4,6.41885357]
[1760965889605,4.6741,192.53,192.45,4.6756]
[1760965889902,4.6741,192.53,192.39,10.69330014]
[1760965890096,3.37035086,192.55,192.39,4.27444657]
[1760965890303,3.37035086,192.52,192.39,0.90409571]
[1760965890603,3.37035086,192.52,192.36,6.41885357]
[1760965890899,3.37035086,192.52,192.36,7.32318422]
[1760965891404,4.6746,192.5,192.42,4.6765]
[1760965892199,3.37035086,192.52,192.42,4.6765]
[1760965892902,4.6741,192.53,192.42,4.6765]
[1760965893108,4.6741,192.53,192.43,4.6761]
[1760965895907,4.6741,192.53,192.44,4.6759]
[1760965897104,3.37035086,192.54,192.44,4.6759]
[1760965898705,4.6734,192.55,192.44,4.6759]
[1760965898909,3.37035086,192.54,192.44,4.6759]
[1760965901804,8.04425086,192.54,192.44,4.6759]
[1760965902205,3.37035086,192.51,192.44,4.6759]
[1760965904411,3.37035086,192.51,192.42,4.6765]
[1760965904807,3.37035086,192.51,192.31,9.73259891]
[1760965904808,3.37035086,192.48,192.32,3.37035086]
[1760965906012,4.6754,192.47,192.37,4.6776]
[1760965906609,4.6754,192.47,192.32,3.37035086]
[1760965906810,4.6758,192.46,192.32,3.37035086]
[1760965908811,2.16051408,192.44,192.35,2.16051408]
[1760965909110,2.16051408,192.44,192.38,4.6774]
[1760965917723,2.16051408,192.44,192.39,4.6771]
[1760965919117,2.16051408,192.47,192.39,2.16051408]
[1760965919621,2.16051408,192.49,192.41,2.16051408]
[1760965919822,32.18,192.57,192.41,2.16051408]
[1760965919823,2.16051408,192.51,192.41,2.16051408]
[1760965920024,2.16051408,192.51,192.43,2.16051408]
[1760965920518,52.5443,192.61,192.43,2.16051408]
[1760965920723,2.16051408,192.51,192.46,4.6755]
[1760965920919,2.16051408,192.51,192.43,2.16051408]
[1760965920920,2.16051408,192.53,192.43,2.16051408]
[1760965921224,2.16051408,192.55,192.45,2.16051408]
[1760965922123,6.83401408,192.55,192.48,4.675]
[1760965922624,2.16051408,192.53,192.48,4.675]
[1760965923620,6.83401408,192.55,192.48,4.675]
[1760965924028,6.83401408,192.55,192.39,29.9745]
[1760965924029,2.16051408,192.55,192.49,4.6747]
[1760965924621,22.76108659,192.57,192.49,6.83521408]
[1760965926121,4.6733,192.56,192.49,6.83521408]
[1760965926323,4.6733,192.56,192.47,6.83571408]
[1760965926324,2.16051408,192.55,192.47,6.83571408]
[1760965926714,2.16051408,192.55,192.48,4.675]
[1760965927823,9.3418,192.66,192.51,2.16051408]
[1760965928017,2.16051408,192.59,192.51,2.16051408]
[1760965928521,2.16051408,192.61,192.51,2.16051408]
[1760965928718,2.16051408,192.61,192.53,2.16051408]
[1760965928919,6.83261408,192.61,192.54,4.6734]
[1760965929122,22.52645344,192.61,192.51,2.16051408]
[1760965929322,14.19726293,192.71,192.51,2.16051408]
[1760965929323,2.16051408,192.59,192.51,2.16051408]
[1760965929729,2.16051408,192.59,192.52,4.674]
[1760965930125,2.16051408,192.53,192.35,6.41885357]
[1760965930322,4.41388122,192.6,192.42,2.16051408]
[1760965930323,2.16051408,192.5,192.42,2.16051408]
[1760965930819,2.16051408,192.5,192.43,4.6762]
[1760965931022,2.16051408,192.5,192.41,2.16051408]
[1760965931531,6.83521408,192.5,192.42,4.6763]
[1760965931831,4.41388122,192.59,192.41,2.16051408]
[1760965932030,2.16051408,192.5,192.41,2.16051408]
[1760965932238,4.675,192.49,192.41,6.83721408]
[1760965932425,2.16051408,192.48,192.41,6.83721408]
[1760965933515,6.83581408,192.48,192.41,4.6767]
[1760965933830,2.16051408,192.48,192.39,2.16051408]
[1760965934531,6.83621408,192.46,192.39,4.6772]
[1760965935231,2.16051408,192.48,192.4,4.6768]
[1760965935732,2.16051408,192.46,192.4,4.6768]
[1760965938031,2.16051408,192.45,192.35,2.16051408]
[1760965938238,2.16051408,192.43,192.35,2.16051408]
[1760965938532,2.16051408,192.43,192.37,4.6776]
[1760965941235,2.16051408,192.41,192.35,4.6782]
[1760965943522,4.34888983,192.51,192.34,2.16051408]
[1760965943726,4.34888983,192.51,192.36,2.16051408]
[1760965943727,2.16051408,192.44,192.36,2.16051408]
[1760965944838,4.34888983,192.53,192.36,2.16051408]
[1760965945037,2.16051408,192.45,192.36,2.16051408]
[1760965945334,2.16051408,192.45,192.39,4.6772]
[1760965945835,2.16051408,192.43,192.37,4.6777]
[1760965946033,2.16051408,192.43,192.34,2.16051408]
[1760965946232,2.16051408,192.41,192.33,6.41885357]
[1760965946429,2.16051408,192.41,192.36,4.6779]
[1760965947136,2.16051408,192.41,192.34,4.6784]
[1760965947835,24.928,192.53,192.3,11.09825357]
[1760965947836,2.16051408,192.37,192.3,11.09825357]
[1760965948137,2.16051408,192.35,192.3,4.6794]
[1760965949838,2.16051408,192.33,192.26,6.41885357]
[1760965950042,2.16051408,192.33,192.25,8.57936765]
[1760965950339,2.16051408,192.33,192.25,6.41885357]
[1760965951424,4.34478065,192.43,192.24,6.41885357]
[1760965951634,2.16051408,192.31,192.22,8.57936765]
[1760965951830,2.16051408,192.31,192.24,2.16051408]
[1760965952129,2.16051408,192.31,192.25,4.6805]
[1760965952837,2.16051408,192.31,192.26,4.6803]
[1760965954438,4.34478065,192.43,192.25,2.16051408]
[1760965954439,2.16051408,192.33,192.25,2.16051408]
[1760965954738,2.16051408,192.37,192.28,2.16051408]
[1760965956546,2.16051408,192.37,192.3,2.16051408]
[1760965956731,30.86,192.47,192.17,12.86790008]
[1760965956732,15.58,192.45,192.2,6.41885357]
[1760965957045,15.58,192.45,192.13,9.3669]
[1760965957046,2.16051408,192.31,192.23,2.16051408]
[1760965957542,2.16051408,192.31,192.24,4.6808]
[1760965957738,19.91689965,192.42,192.19,6.41885357]
[1760965957942,2.16051408,192.28,192.18,6.41885357]
[1760965958243,2.16051408,192.28,192.2,4.6818]
[1760965959229,2.16051408,192.28,192.21,4.6815]
[1760965959433,2.16051408,192.3,192.19,2.16051408]
[1760965960245,6.84011408,192.3,192.22,4.6812]
[1760965961644,28.26,192.35,192.13,6.41885357]
[1760965961943,2.16051408,192.23,192.12,2.16051408]
[1760965962140,2.16051408,192.23,192.14,2.16051408]
[1760965963040,2.16051408,192.23,192.16,4.6827]
[1760965963944,2.16051408,192.23,192.17,4.6825]
[1760965964245,2.16051408,192.25,192.14,2.16051408]
[1760965965133,2.16051408,192.25,192.18,4.6822]
[1760965966046,2.16051408,192.21,192.14,4.6834]
[1760965966234,2.16051408,192.19,192.09,2.16051408]
[1760965966541,2.16051408,192.19,192.04,50.03885357]
[1760965966542,4.6821,192.2,192.1,4.6842]
[1760965966745,32.05505653,192.3,192.1,4.6842]
[1760965966948,2.16051408,192.18,192.1,4.6842]
[1760965967132,2.16051408,192.18,192.1,6.84471408]
[1760965967746,2.16051408,192.18,192.11,4.6839]
[1760965968746,4.6821,192.2,192.11,4.6839]
[1760965969954,4.6831,192.16,192.05,4.6853]
[1760965970334,5.41686733,192.21,192.03,43.64]
[1760965970535,4.6824,192.18,192.07,4.6849]
[1760965971338,8.17413335,192.19,192.05,4.6855]
[1760965972254,4.6829,192.16,192.03,8.17413335]
[1760965972443,8.17413335,192.25,192.03,8.17413335]
[1760965972753,23.75413335,192.25,192.03,8.17413335]
[1760965973046,4.6828,192.17,192.08,4.6846]
[1760965973650,23.75413335,192.25,192.08,4.6846]
[1760965976949,4.6827,192.17,192.08,4.6846]
[1760965977448,67.43413335,192.25,192.09,4.6844]
[1760965978356,67.43413335,192.25,192.05,4.6853]
[1760965979356,15.58,192.23,192.05,4.6853]
[1760965979947,4.6833,192.15,192.05,4.6853]
[1760965980251,15.58,192.23,192.05,4.6853]
[1760965981555,15.58,192.23,192.06,4.6852]
[1760965981746,9.3619,192.24,192.01,8.17413335]
[1760965981946,36.1419,192.24,192.01,8.17413335]
[1760965983053,4.6828,192.17,192.01,8.17413335]
[1760965983553,4.6822,192.19,192.1,4.6842]
[1760965984457,4.6825,192.18,192.1,4.6842]
[1760965984649,9.3624,192.23,191.98,0.90597868]
[1760965984846,8.17413335,192.21,191.98,9.08011203]
[1760965985248,4.6835,192.14,191.98,9.08011203]
[1760965985845,4.6835,192.14,192.06,4.6852]
[1760965986261,23.75413335,192.21,192.03,4.686]
[1760965986461,26.78,192.24,191.98,0.90597868]
[1760965986462,8.17413335,192.17,191.98,0.90597868]
[1760965986958,4.6848,192.09,192.01,4.6864]
[1760965987154,8.17413335,192.17,191.94,0.9062028]
[1760965987155,15.58,192.16,191.94,0.9062028]
[1760965987364,4.6852,192.07,191.86,8.17413335]
[1760965987543,17.54203335,192.12,191.9,0.90639162]
[1760965987959,17.54203335,192.12,191.81,144.51259891]
[1760965987960,8.17413335,192.12,191.85,15.53413335]
[1760965988264,8.17413335,192.12,191.89,0.90649787]
[1760965988455,9.3689,192.1,191.94,4.6881]
[1760965988760,9.3689,192.1,191.89,0.90649787]
[1760965989560,8.17413335,192.12,191.89,0.90649787]
[1760965989948,8.17413335,192.12,191.89,17.64649787]
[1760965990154,8.17413335,192.12,191.89,25.82063122]
[1760965990656,8.17413335,192.12,191.89,0.90649787]
[1760965990859,3.77406901,192.11,191.89,0.90649787]
[1760965991463,4.686,192.04,191.96,4.6877]
[1760965993062,4.686,192.04,191.89,0.90649787]
[1760965993063,4.686,192.04,191.97,4.6874]
[1760965995971,4.6863,192.03,191.89,0.90649787]
[1760965996270,8.17413335,192.08,191.85,9.3809]
[1760965996461,8.17413335,192.08,191.81,178.52]
[1760965996462,8.17413335,192.04,191.81,134.78]
[1760965996769,4.6872,191.99,191.9,4.689]
[1760965997368,4.6872,191.99,191.91,4.6888]
[1760965999067,8.17413335,192.04,191.93,4.6885]
[1760965999068,4.6866,192.01,191.93,4.6885]
[1760965999366,4.6875,191.98,191.81,178.58]
[1760965999553,4.6875,191.98,191.84,0.90666319]
[1760965999952,4.6875,191.98,191.9,4.6891]
[1760966000155,4.6875,191.98,191.84,0.90666319]
[1760966000360,4.6875,191.98,191.84,9.08079654]
[1760966001062,4.6875,191.98,191.91,4.6888]
[1760966001262,4.6869,192.0,191.84,8.17413335]
[1760966001464,4.6869,192.0,191.84,51.99413335]
[1760966002471,4.6869,192.0,191.84,8.17413335]
[1760966002670,4.6869,192.0,191.92,4.6885]
[1760966004670,4.6872,191.99,191.92,4.6885]
[1760966005261,4.69234392,192.03,191.87,4.6898]
[1760966005456,12.86647727,192.02,191.85,43.8]
[1760966005660,4.69234392,192.01,191.85,43.8]
[1760966005969,4.6877,191.97,191.89,4.6893]
[1760966006467,4.6877,191.97,191.9,4.6891]
[1760966006876,4.6877,191.97,191.82,54.08899313]
[1760966007066,4.688,191.95,191.81,178.58]
[1760966007373,12.86975944,191.98,191.86,4.6901]
[1760966007669,4.69579476,191.97,191.86,4.6901]
[1760966008368,4.69579476,191.96,191.86,4.6901]
[1760966008568,4.69579476,191.97,191.86,4.6901]
[1760966008768,4.69579476,191.97,191.81,134.78]
[1760966008769,4.6881,191.95,191.87,4.6898]
[1760966009364,4.6884,191.94,191.85,4.6904]
[1760966010073,4.69635703,191.96,191.83,4.6909]
[1760966010273,4.69635703,191.95,191.83,4.6909]
[1760966010571,8.17413335,191.98,191.77,9.3847]
[1760966010572,4.6889,191.92,191.84,4.6906]
[1760966010761,3.39524273,191.91,191.84,4.6906]
[1760966011578,3.39524273,191.87,191.68,9.73259891]
[1760966011761,8.09356836,191.9,191.68,3.39524273]
[1760966011762,3.39524273,191.84,191.68,3.39524273]
[1760966011962,3.39524273,191.84,191.69,43.92]